bitfinex-derivatives/quotes_ETHF0:USTF0_20260121
["timestamp","ask_amount","ask_price","bid_price","bid_amount"]
[1769033865024,1.14441808,3037.3,3036.1,3.74755976]
[1769033865327,1.14468887,3037.2,3036.1,0.16482]
[1769033865622,1.14468887,3037.1,3036.1,0.16482]
[1769033865822,1.14468887,3037.0,3036.1,0.16482]
[1769033866024,1.14468887,3036.9,3036.1,0.16482]
[1769033866223,0.28916583,3036.8,3036.1,0.16482]
[1769033866424,3.53470184,3037.4,3036.1,0.16482]
[1769033866623,1.14468525,3037.3,3036.1,0.16482]
[1769033866924,1.14468525,3037.2,3036.1,0.16482]
[1769033867117,1.14468525,3037.1,3036.1,0.16482]
[1769033867314,1.14468525,3037.0,3036.1,0.16482]
[1769033867520,1.14468525,3036.9,3036.1,0.16482]
[1769033867819,1.14468525,3036.8,3036.1,0.16482]
[1769033868021,3.53470184,3037.4,3036.1,0.16482]
[1769033868220,1.14496962,3037.3,3036.1,0.16482]
[1769033868420,1.14496962,3037.2,3036.1,0.16482]
[1769033868621,1.14496962,3037.1,3036.1,0.16482]
[1769033868822,1.14496962,3037.0,3036.1,0.16482]
[1769033869025,1.14496962,3036.9,3036.1,0.16482]
[1769033869225,1.14496856,3036.8,3036.1,0.16482]
[1769033869525,3.53470184,3037.4,3036.1,0.16482]
[1769033869725,3.53470184,3037.2,3035.8,0.00338396]
[1769033869930,3.53470184,3037.0,3035.8,0.00338396]
[1769033870125,1.14496043,3036.9,3035.8,0.00338396]
[1769033870319,1.14496043,3036.8,3035.8,0.00338396]
[1769033870520,1.14496043,3036.7,3035.8,0.00338396]
[1769033870825,1.14496043,3036.6,3035.8,0.00338396]
[1769033871125,1.14496043,3036.5,3035.8,0.00338396]
[1769033871322,0.28930885,3036.4,3035.8,0.00338396]
[1769033871528,3.53470184,3037.0,3035.8,0.00338396]
[1769033871728,3.53470184,3036.8,3034.9,3.58273976]
[1769033872033,4.6798573,3036.7,3034.9,3.58273976]
[1769033872327,4.6798573,3036.6,3035.2,0.16487]
[1769033872525,1.14515546,3036.5,3035.2,0.16487]
[1769033872729,1.14515546,3036.4,3035.2,0.16910571]
[1769033873028,1.14515546,3036.3,3035.2,0.16910571]
[1769033873227,0.28927821,3036.2,3035.2,0.16910571]
[1769033873526,3.53470184,3036.6,3035.2,0.16910571]
[1769033873727,1.14482188,3036.5,3035.2,0.16910571]
[1769033874028,1.14482188,3036.4,3035.2,0.16910571]
[1769033874222,1.14482188,3036.3,3035.2,0.16910571]
[1769033874423,0.28920888,3036.2,3035.2,0.16910571]
[1769033874729,3.53470184,3036.6,3035.2,0.16910571]
[1769033874930,1.14483005,3036.5,3035.2,0.16910571]
[1769033875129,1.14483005,3036.4,3035.2,0.16910571]
[1769033875331,0.28921118,3036.3,3035.2,0.16910571]
[1769033875531,3.53470184,3036.6,3035.2,0.16910571]
[1769033875730,1.14468524,3036.5,3035.2,0.16910571]
[1769033876027,1.14468524,3036.4,3035.2,0.16910571]
[1769033876228,0.28917457,3036.3,3035.2,0.16910571]
[1769033876430,3.53470184,3036.6,3035.2,0.16910571]
[1769033876733,1.14445414,3036.5,3035.2,0.16910571]
[1769033876924,1.14445414,3036.4,3035.2,0.16910571]
[1769033877232,0.2890305,3036.3,3035.2,0.16910571]
[1769033877432,3.53470184,3036.6,3035.2,0.16910571]
[1769033877633,1.14423443,3036.5,3035.2,0.16910571]
[1769033877932,1.14423443,3036.4,3035.2,0.16910571]
[1769033878134,0.288976,3036.3,3035.2,0.16910571]
[1769033878325,3.53470184,3036.6,3035.2,0.16910571]
[1769033878526,1.14406203,3036.5,3035.2,0.16910571]
[1769033878830,3.53470184,3037.3,3035.8,3.58273976]
[1769033879130,3.53470184,3037.1,3035.7,0.16484]
[1769033879332,4.67897311,3037.0,3035.7,0.16484]
[1769033879526,1.14427127,3036.9,3035.7,0.16484]
[1769033879724,1.14427127,3036.8,3035.7,0.16484]
[1769033879925,1.14427127,3036.7,3035.7,0.16484]
[1769033880127,0.28898076,3036.6,3035.7,0.16484]
[1769033880335,0.28898076,3036.5,3035.7,0.16484]
[1769033880523,3.53470184,3037.0,3035.2,0.00423571]
[1769033880727,3.54418631,3036.8,3035.2,0.00423571]
[1769033880929,3.54418631,3036.6,3035.2,0.00423571]
[1769033881235,4.49339185,3036.5,3035.2,0.00423571]
[1769033881436,3.35007496,3036.3,3035.2,0.00423571]
[1769033881639,0.28887079,3036.2,3035.2,0.00423571]
[1769033881929,0.28887079,3036.1,3035.2,0.00423571]
[1769033882136,3.35007496,3036.3,3035.2,0.00423571]
[1769033882337,0.28865337,3036.2,3035.2,0.00423571]
[1769033882638,0.28865495,3036.1,3035.2,0.00423571]
[1769033882829,3.35007496,3036.3,3035.2,0.00423571]
[1769033883029,0.28870817,3036.2,3035.2,0.00423571]
[1769033883235,0.28870817,3036.1,3035.2,0.00423571]
[1769033883436,3.35007496,3036.3,3035.2,0.00423571]
[1769033883736,0.28870945,3036.2,3035.2,0.00423571]
[1769033883935,3.63878441,3036.1,3034.5,0.1649]
[1769033884138,3.35007496,3035.9,3034.0,3.7411015]
[1769033884338,3.35007496,3035.7,3034.0,3.7411015]
[1769033884635,4.492014,3035.6,3034.0,3.7411015]
[1769033884834,0.28870945,3035.5,3034.0,3.7411015]
[1769033885030,0.28870945,3035.4,3034.0,3.74342517]
[1769033885236,0.00295148,3035.5,3034.0,3.74342517]
[1769033886135,3.35302644,3035.5,3034.0,0.16725367]
[1769033886337,3.35007496,3035.3,3034.0,0.16725367]
[1769033886639,0.00295148,3035.5,3034.3,0.16492]
[1769033886841,0.28823596,3035.4,3034.3,0.16492]
[1769033887040,0.00295148,3035.5,3034.3,0.16492]
[1769033888244,0.00295148,3035.5,3034.5,0.16491]
[1769033889337,0.00295148,3035.5,3034.1,3.5761715]
[1769033889338,0.00295148,3035.5,3034.6,0.1649]
[1769033889539,0.00295148,3035.5,3034.7,0.1649]
[1769033892544,0.00295148,3035.5,3034.7,3.7410715]
[1769033892737,3.35007496,3036.8,3035.2,0.16487]
[1769033892938,1.1364339,3036.7,3035.2,0.16487]
[1769033893136,1.1364339,3036.6,3035.2,0.16487]
[1769033893446,1.1364339,3036.5,3035.2,0.16487]
[1769033893648,0.28805906,3036.4,3035.2,0.16487]
[1769033894150,0.28805906,3036.4,3034.1,2.085]
[1769033894151,0.00303827,3036.5,3035.0,3.5761715]
[1769033895651,0.00303827,3036.5,3035.4,0.16486]
[1769033897146,0.28855187,3036.4,3035.4,0.16486]
[1769033897338,0.00303827,3036.5,3035.4,0.16486]
[1769033897545,0.28855186,3036.4,3035.4,0.16486]
[1769033897848,0.00303827,3036.5,3035.4,0.16486]
[1769033898141,0.28855159,3036.4,3035.4,0.16486]
[1769033898347,0.00303827,3036.5,3035.6,0.16485]
[1769033898747,0.28861963,3036.4,3035.6,0.16485]
[1769033898946,0.00303827,3036.5,3035.6,0.16485]
[1769033899141,0.28861938,3036.4,3035.6,0.16485]
[1769033899337,0.00303827,3036.5,3035.6,0.16485]
[1769033899542,0.28868899,3036.4,3035.6,0.16485]
[1769033899748,0.00303827,3036.5,3035.6,0.16485]
[1769033900048,0.28868863,3036.4,3035.6,0.16485]
[1769033900346,0.00303827,3036.5,3035.6,0.16485]
[1769033900546,0.28871207,3036.4,3035.6,0.16485]
[1769033900746,3.35007496,3037.3,3035.8,3.7410015]
[1769033900946,1.13857058,3037.2,3035.8,3.7410015]
[1769033901147,1.13857058,3037.1,3035.8,3.7410015]
[1769033901347,0.28876462,3037.0,3035.8,3.7410015]
[1769033901540,0.28876462,3036.9,3035.8,3.7410015]
[1769033901848,0.00317272,3036.9,3035.8,3.7410015]
[1769033902850,0.00317272,3036.9,3036.2,0.16481]
[1769033903046,0.00317272,3036.9,3036.2,0.1689839]
[1769033915666,6.477,3037.9,3036.6,0.16479]
[1769033915866,1.1361432,3037.8,3036.6,0.16479]
[1769033916066,1.1361432,3037.7,3036.6,0.16479]
[1769033916268,1.1361432,3037.6,3036.6,0.16479]
[1769033916568,0.28815339,3037.5,3036.6,0.16479]
[1769033918063,0.28815339,3037.5,3036.7,0.16479]
[1769033918459,0.00392342,3037.6,3036.7,0.16479]
[1769033918665,0.28835385,3037.5,3036.7,0.16479]
[1769033918865,0.28835385,3037.4,3036.7,0.16479]
[1769033919066,0.00392342,3037.6,3036.4,3.54535282]
[1769033919267,4.73818996,3037.5,3036.2,0.0041739]
[1769033919470,4.73818996,3037.4,3036.2,0.0041739]
[1769033919672,1.13725426,3037.3,3036.2,0.0041739]
[1769033919970,3.6009357,3037.1,3035.7,3.868]
[1769033920166,4.73793374,3037.0,3035.5,0.16485]
[1769033920364,3.6009357,3036.8,3035.0,0.16488]
[1769033920570,3.6009357,3036.6,3035.0,0.16488]
[1769033920864,1.13689476,3036.5,3035.0,0.16912962]
[1769033921072,0.28844886,3036.4,3035.0,0.16912962]
[1769033921263,3.6009357,3036.6,3035.1,3.71022282]
[1769033921461,1.13734105,3036.5,3035.1,3.71022282]
[1769033921665,0.28842308,3036.4,3035.1,3.71022282]
[1769033921858,3.6009357,3036.6,3035.1,3.71022282]
[1769033922067,1.13624063,3036.5,3035.1,3.71022282]
[1769033922268,0.28849556,3036.4,3035.1,3.71022282]
[1769033922468,0.28865482,3036.3,3035.1,3.71022282]
[1769033922768,3.6009357,3036.6,3035.1,3.71022282]
[1769033923065,0.28866807,3036.5,3035.6,0.16485]
[1769033923266,0.28872899,3036.4,3035.6,0.16485]
[1769033923468,3.6009357,3037.1,3035.6,0.16485]
[1769033923668,1.13716361,3037.0,3035.6,0.16485]
[1769033923864,1.13716361,3036.9,3035.6,0.16485]
[1769033924173,1.13716361,3036.8,3035.6,0.16485]
[1769033924371,1.13716361,3036.7,3035.6,0.16485]
[1769033924572,1.13716361,3036.6,3035.6,3.71020282]
[1769033924766,0.28872894,3036.5,3035.6,3.71020282]
[1769033924967,3.6009357,3037.1,3035.6,3.71020282]
[1769033925166,1.13723881,3037.0,3035.6,3.71020282]
[1769033925463,1.13723881,3036.9,3035.6,3.71020282]
[1769033925770,1.13723881,3036.8,3035.6,3.71020282]
[1769033925971,0.28874889,3036.7,3035.6,3.71020282]
[1769033926172,0.28874889,3036.6,3035.6,3.71020282]
[1769033926474,3.6009357,3037.1,3035.6,3.71020282]
[1769033926672,1.1375569,3037.0,3035.6,3.71020282]
[1769033926873,1.1375569,3036.9,3035.6,3.71020282]
[1769033927177,1.1375569,3036.8,3035.6,3.71020282]
[1769033927478,0.28882152,3036.7,3035.6,3.71020282]
[1769033927668,0.28882152,3036.6,3035.6,3.71020282]
[1769033927870,3.6009357,3037.1,3035.6,3.71020282]
[1769033928074,1.13768216,3037.0,3035.6,3.71020282]
[1769033928276,3.6009357,3037.1,3035.6,3.71020282]
[1769033928277,1.13768216,3036.9,3035.6,3.71020282]
[1769033928471,1.13768216,3036.8,3035.6,3.71020282]
[1769033928681,0.28885191,3036.7,3035.8,0.16483]
[1769033928981,3.6009357,3037.5,3035.9,3.54535282]
[1769033929176,1.13807905,3037.4,3035.9,3.54535282]
[1769033929377,1.13807905,3037.3,3035.9,3.54535282]
[1769033929575,1.13807905,3037.2,3036.1,3.54535282]
[1769033929778,0.28894924,3037.1,3036.1,3.54535282]
[1769033929978,0.00392342,3037.6,3036.1,3.54535282]
[1769033930179,1.13822579,3037.5,3036.2,0.16481]
[1769033930376,1.13822579,3037.4,3036.3,3.71016282]
[1769033930574,1.13822579,3037.3,3036.4,3.54535282]
[1769033930881,0.00392342,3037.6,3036.8,3.71013282]
[1769033932282,0.00392342,3037.6,3036.3,0.16481]
[1769033933477,0.00392342,3037.6,3036.3,3.71016282]
[1769033938774,0.00392342,3037.6,3036.4,3.54535282]
[1769033938976,0.00392342,3037.6,3036.6,3.71014282]
[1769033939376,0.00392342,3037.6,3036.6,0.16479]
[1769033939580,0.92897859,3037.4,3036.2,3.54535282]
[1769033940886,0.92897859,3037.1,3036.0,0.16483]
[1769033941880,0.92897859,3036.8,3035.4,2.36038768]
[1769033942082,0.92897859,3036.8,3035.5,0.16485]
[1769033942386,0.16866342,3037.6,3035.5,0.16485]
[1769033942387,0.92897859,3036.5,3035.5,0.16485]
[1769033942587,0.92897859,3036.2,3035.0,0.00424962]
[1769033942985,3.51777675,3036.8,3035.0,0.00424962]
[1769033943184,4.64481887,3036.7,3035.0,0.00424962]
[1769033943484,1.12704212,3036.6,3035.0,0.00424962]
[1769033943682,3.80431272,3036.5,3035.0,0.00424962]
[1769033943981,1.36957393,3037.1,3035.0,0.00424962]
[1769033943982,3.51777675,3036.3,3035.0,0.00424962]
[1769033944285,0.28653597,3036.2,3035.0,0.00424962]
[1769033944477,0.28653597,3036.1,3035.0,0.00424962]
[1769033944681,3.51777675,3036.3,3035.0,0.00424962]
[1769033944881,0.2863444,3036.2,3035.0,0.00424962]
[1769033945082,4.64462264,3036.1,3035.0,0.00424962]
[1769033945282,0.2863444,3036.0,3035.0,0.00424962]
[1769033945486,0.2863444,3035.9,3035.0,0.00424962]
[1769033945686,3.51777675,3036.1,3035.0,0.00424962]
[1769033945888,0.2861768,3036.0,3035.0,0.00424962]
[1769033946084,0.2861768,3035.9,3035.0,0.00424962]
[1769033946283,3.51777675,3036.1,3035.0,0.00424962]
[1769033946487,0.28606303,3036.0,3035.0,0.00424962]
[1769033946689,3.51777675,3035.8,3034.4,0.16491]
[1769033946887,0.28604049,3035.7,3034.4,0.16491]
[1769033947287,3.51777675,3035.8,3034.4,0.16491]
[1769033947690,3.51777675,3035.8,3034.4,0.16850525]
[1769033947985,3.51777675,3035.6,3034.4,0.00359525]
[1769033949387,3.51777675,3035.4,3033.9,0.16494]
[1769033949589,3.51777675,3035.2,3033.9,0.16494]
[1769033949985,0.28552113,3035.1,3033.9,0.16494]
[1769033950291,3.51777675,3035.1,3033.9,0.16494]
[1769033950488,3.52069575,3035.1,3033.9,0.16787488]
[1769033951494,3.52069575,3035.1,3033.9,0.00293488]
[1769033958203,0.002919,3035.1,3034.1,0.16493]
[1769033959400,0.002919,3035.1,3033.9,3.40804515]
[1769033959601,3.51777675,3035.9,3034.3,3.40511027]
[1769033960000,3.51777675,3035.9,3034.7,0.1649]
[1769033960296,3.51777675,3036.5,3034.7,0.1649]
[1769033960599,0.00418482,3036.5,3035.3,0.16486]
[1769033964009,0.00418482,3036.5,3035.5,3.40511027]
[1769033964211,0.00418482,3036.5,3035.7,0.16484]
[1769033964597,3.51777675,3038.0,3036.0,0.16483]
[1769033964801,0.16471,3038.1,3036.0,0.16483]
[1769033964802,3.51777675,3037.8,3036.0,0.16483]
[1769033965499,3.52157044,3037.8,3036.0,0.16483]
[1769033967210,3.52157044,3037.8,3034.4,2.36038768]
[1769033967211,3.51777675,3037.6,3035.6,0.16484]
[1769033967406,3.51777675,3037.2,3035.6,0.16484]
[1769033967705,3.51777675,3037.0,3034.9,0.16488]
[1769033967910,3.51777675,3036.8,3034.9,0.16488]
[1769033968110,3.51777675,3036.6,3034.9,0.16488]
[1769033970613,1.12363787,3036.5,3034.9,0.16488]
[1769033970907,3.51777675,3036.6,3034.9,0.16488]
[1769033971107,0.83838457,3036.5,3034.9,0.16488]
[1769033971304,3.51777675,3036.6,3034.9,0.16488]
[1769033971503,4.77914158,3036.5,3034.9,0.16488]
[1769033971700,3.6549711,3036.5,3034.9,0.16488]
[1769033972304,0.83896825,3036.4,3034.9,0.16488]
[1769033972510,3.6549711,3036.5,3034.9,0.16488]
[1769033972809,0.83896831,3036.4,3034.9,0.16488]
[1769033973012,3.6549711,3036.5,3034.9,3.47824757]
[1769033974516,3.6549711,3036.5,3035.0,0.16488]
[1769033978816,3.6549711,3036.9,3035.4,0.16486]
[1769033979016,3.6549711,3036.7,3035.4,0.16486]
[1769033979219,1.12438469,3036.6,3035.4,0.16486]
[1769033979519,3.6549711,3036.7,3035.4,0.16486]
[1769033979716,3.6549711,3036.5,3034.9,3.47824757]
[1769033980720,3.6549711,3036.5,3035.2,0.16487]
[1769033980919,10.1319711,3037.0,3035.4,0.16486]
[1769033981122,4.77974068,3036.9,3035.4,0.16486]
[1769033981319,4.77974068,3036.8,3035.4,0.16486]
[1769033981521,1.12476958,3036.7,3035.4,0.16486]
[1769033981721,3.6549711,3036.8,3035.4,0.16486]
[1769033981921,1.12531416,3036.7,3035.4,0.16486]
[1769033982120,3.6549711,3036.8,3035.4,0.16486]
[1769033982324,1.12531516,3036.7,3035.4,0.16486]
[1769033982625,0.28567475,3036.6,3035.4,0.16486]
[1769033982815,3.6549711,3036.8,3035.4,0.16486]
[1769033983017,1.1256893,3036.7,3035.4,0.16486]
[1769033983218,0.28577051,3036.6,3035.4,0.16486]
[1769033983419,3.6549711,3036.8,3035.4,0.16486]
[1769033983614,1.12606775,3036.7,3035.4,0.16486]
[1769033983820,0.2858677,3036.6,3035.4,0.16486]
[1769033984021,3.6549711,3036.8,3035.4,0.16486]
[1769033984223,1.12612822,3036.7,3035.4,0.16486]
[1769033984417,1.12612822,3036.6,3035.4,0.16486]
[1769033984623,3.6549711,3036.4,3034.6,9.45024757]
[1769033984921,3.6549711,3036.4,3034.7,3.47824757]
[1769033985329,3.6549711,3036.4,3035.1,0.16487]
[1769033986326,6.64177,3037.0,3035.1,0.16487]
[1769033986327,3.6549711,3036.2,3035.1,0.16487]
[1769033986825,0.28629003,3036.1,3034.7,0.16489]
[1769033987022,3.6549711,3036.2,3034.7,0.16489]
[1769033987329,1.12796359,3036.1,3034.7,0.16489]
[1769033987530,0.28627172,3036.0,3034.7,0.16489]
[1769033987730,3.6549711,3036.2,3034.7,0.16489]
[1769033987932,1.12804079,3036.1,3034.7,0.16489]
[1769033988227,0.28638784,3036.0,3034.7,0.16489]
[1769033988424,3.6549711,3036.2,3034.7,0.16489]
[1769033988639,1.12892177,3036.1,3034.7,0.16489]
[1769033988829,0.28658909,3036.0,3034.7,0.16489]
[1769033989029,3.6549711,3036.2,3034.7,0.16489]
[1769033989231,1.12892239,3036.1,3034.9,0.16488]
[1769033989431,1.12892239,3036.0,3034.9,0.16488]
[1769033989731,0.28658994,3035.9,3034.9,0.16488]
[1769033990030,3.6549711,3036.5,3034.9,0.16488]
[1769033990232,4.78426038,3036.4,3034.9,0.16488]
[1769033990432,1.12928928,3036.3,3034.9,0.16488]
[1769033990731,1.12928928,3036.2,3034.9,0.16488]
[1769033990931,1.12928928,3036.1,3034.9,0.16488]
[1769033991131,1.1293517,3036.0,3034.9,0.16488]
[1769033991332,0.28691356,3035.9,3034.9,0.16488]
[1769033991532,3.6549711,3036.4,3034.9,0.16488]
[1769033991835,1.12948096,3036.3,3034.9,0.16488]
[1769033992027,1.12948096,3036.2,3035.1,0.16487]
[1769033992230,0.28690123,3036.1,3035.1,0.16487]
[1769033992539,3.6549711,3036.4,3035.1,0.16487]
[1769033992831,1.12766253,3036.3,3035.1,0.16487]
[1769033993032,0.28692929,3036.2,3035.1,0.16487]
[1769033993335,0.28692929,3036.1,3035.1,0.16487]
[1769033993527,3.6549711,3036.4,3035.1,0.16487]
[1769033993727,1.12764714,3036.3,3035.1,0.16487]
[1769033993923,0.28692569,3036.2,3035.1,0.16487]
[1769033994128,0.28692569,3036.1,3035.1,0.16487]
[1769033994432,3.6549711,3036.4,3035.1,0.16487]
[1769033994636,1.12772617,3036.3,3035.1,0.16487]
[1769033994836,3.9419192,3036.2,3035.1,0.16487]
[1769033995024,3.6549711,3036.0,3034.6,0.1649]
[1769033995227,4.7825347,3035.9,3034.6,0.1649]
[1769033995431,1.1275636,3035.8,3034.6,0.1649]
[1769033995640,0.2869481,3035.7,3034.6,0.1649]
[1769033995840,0.2869481,3035.6,3034.6,0.1649]
[1769033996042,0.00360636,3035.6,3034.6,3.47824757]
[1769033997137,0.00360636,3035.6,3034.9,0.16488]
[1769033997328,0.28737835,3035.5,3034.9,0.16488]
[1769033997528,0.00360636,3035.6,3034.4,2.36038768]
[1769033997732,0.00360636,3035.6,3034.3,2.52529768]
[1769033997733,0.2873824,3035.5,3034.3,2.52529768]
[1769033997932,0.00360636,3035.6,3034.3,2.52529768]
[1769033998132,0.2873827,3035.5,3034.3,2.52529768]
[1769033998438,0.00360636,3035.6,3034.5,0.16491]
[1769033998643,0.28733393,3035.5,3034.5,0.16491]
[1769033998941,0.00360636,3035.6,3034.5,0.16491]
[1769033999236,0.2873335,3035.5,3034.6,0.1649]
[1769033999438,0.00360636,3035.6,3034.6,0.1649]
[1769033999639,0.287301,3035.5,3034.6,0.1649]
[1769033999941,0.00360636,3035.6,3034.6,0.1649]
[1769034000138,0.28730146,3035.5,3034.6,0.1649]
[1769034000439,0.00360636,3035.6,3034.6,0.1649]
[1769034000738,0.28729284,3035.5,3034.6,0.1649]
[1769034001040,0.00360636,3035.6,3034.6,0.1649]
[1769034001244,0.28730603,3035.5,3034.6,0.1649]
[1769034001442,0.00360636,3035.6,3034.6,0.1649]
[1769034001637,0.28729904,3035.5,3034.6,0.1649]
[1769034001938,0.00360636,3035.6,3034.6,0.1649]
[1769034002140,0.28731438,3035.5,3034.6,0.1649]
[1769034002341,0.00360636,3035.6,3034.6,0.1649]
[1769034002541,0.28728386,3035.5,3034.6,0.1649]
[1769034002741,0.00360636,3035.6,3034.6,0.1649]
[1769034003040,0.28728364,3035.5,3034.6,0.1649]
[1769034003339,0.00360636,3035.6,3034.6,0.1649]
[1769034003534,0.28745146,3035.5,3034.6,0.1649]
[1769034003737,0.00360636,3035.6,3034.6,0.1649]
[1769034003936,0.28745535,3035.5,3034.6,0.1649]
[1769034004136,0.00360636,3035.6,3034.6,0.1649]
[1769034004440,0.28744302,3035.5,3034.6,0.1649]
[1769034004741,0.28744302,3035.4,3034.6,0.1649]
[1769034004939,0.00360636,3035.6,3034.6,0.1649]
[1769034005241,0.28741661,3035.5,3034.6,0.1649]
[1769034005441,0.28741661,3035.4,3034.6,0.1649]
[1769034005741,0.00360636,3035.6,3034.6,0.1649]
[1769034005940,0.28739718,3035.5,3034.6,0.1649]
[1769034006240,0.28739718,3035.4,3034.6,0.1649]
[1769034006540,0.00360636,3035.6,3034.6,0.1649]
[1769034006735,0.28736897,3035.5,3034.6,0.1649]
[1769034006935,0.28736897,3035.4,3034.6,0.1649]
[1769034007136,0.00360636,3035.6,3034.6,0.1649]
[1769034007336,1.12855212,3035.5,3034.6,0.1649]
[1769034007541,0.28734069,3035.4,3034.6,0.1649]
[1769034007739,0.28734069,3035.3,3034.1,0.16493]
[1769034008038,0.28734069,3035.2,3034.1,0.16493]
[1769034008240,3.4022928,3035.5,3034.1,0.16493]
[1769034008442,4.53044857,3035.4,3034.1,0.16493]
[1769034008642,4.53044857,3035.3,3034.1,0.16493]
[1769034008843,1.12815577,3035.2,3034.1,0.16493]
[1769034009042,0.28727833,3035.1,3034.1,0.16493]
[1769034009241,3.4022928,3035.3,3034.1,0.16493]
[1769034009435,1.1278569,3035.2,3034.1,0.16493]
[1769034009636,0.2871799,3035.1,3034.1,0.16493]
[1769034009841,3.4022928,3035.3,3034.1,0.16493]
[1769034010042,1.12811833,3035.2,3034.1,0.16493]
[1769034010342,0.28726049,3035.1,3034.1,0.16493]
[1769034010646,0.00360636,3035.6,3034.1,0.16493]
[1769034010843,1.12587766,3035.5,3034.1,0.16493]
[1769034011044,1.12587766,3035.4,3034.1,0.16493]
[1769034011345,1.12587766,3035.3,3034.1,0.16493]
[1769034011534,0.28727,3035.2,3034.1,0.16493]
[1769034011734,0.28727,3035.1,3034.1,0.16493]
[1769034011937,0.00360636,3035.6,3034.1,0.16493]
[1769034012137,3.4022928,3035.4,3034.1,0.16493]
[1769034012337,1.12594572,3035.3,3034.1,0.16493]
[1769034012537,0.28728541,3035.2,3034.1,0.16493]
[1769034012738,0.28728541,3035.1,3034.1,0.16493]
[1769034012942,3.4022928,3035.4,3034.1,0.16493]
[1769034013144,1.12589242,3035.3,3034.1,0.16493]
[1769034013345,0.28727015,3035.2,3034.1,0.16493]
[1769034013640,0.28727015,3035.1,3034.1,0.16493]
[1769034013840,3.4022928,3035.4,3034.1,0.16493]
[1769034014039,1.12587095,3035.3,3034.1,0.16493]
[1769034014245,0.287262,3035.2,3034.1,0.16493]
[1769034014542,0.287262,3035.1,3034.1,0.16493]
[1769034014745,3.4022928,3035.4,3034.1,0.16493]
[1769034014944,1.12589611,3035.3,3034.1,0.16493]
[1769034015148,0.28726594,3035.2,3034.1,0.16493]
[1769034015443,0.28726594,3035.1,3034.1,0.16493]
[1769034015646,3.4022928,3035.4,3034.1,0.16493]
[1769034015841,1.12588914,3035.3,3034.1,0.16493]
[1769034016037,0.28726105,3035.2,3034.4,0.16491]
[1769034016245,0.00360636,3035.6,3034.5,0.16491]
[1769034016445,0.28729769,3035.5,3034.5,0.16491]
[1769034016639,0.28729769,3035.4,3034.5,0.16491]
[1769034016846,0.00360636,3035.6,3034.5,0.16491]
[1769034017039,0.28729313,3035.5,3034.5,0.16491]
[1769034017236,0.28729313,3035.4,3034.5,0.16491]
[1769034017442,0.00360636,3035.6,3034.5,0.16491]
[1769034017741,0.28730572,3035.5,3034.5,0.16491]
[1769034017941,0.28730572,3035.4,3034.5,0.16491]
[1769034018141,0.00360636,3035.6,3034.5,0.16491]
[1769034018342,0.28732094,3035.5,3034.5,0.16491]
[1769034018542,0.28732094,3035.4,3034.5,0.16491]
[1769034018743,0.00360636,3035.6,3034.5,0.16491]
[1769034018943,0.28731564,3035.5,3034.5,0.16491]
[1769034019146,0.28731564,3035.4,3034.5,0.16491]
[1769034019445,0.00360636,3035.6,3034.5,0.16491]
[1769034019646,0.28733464,3035.5,3034.5,0.16491]
[1769034019846,0.28733464,3035.4,3034.5,0.16491]
[1769034020149,0.00360636,3035.6,3034.5,0.16491]
[1769034020352,0.28734808,3035.5,3034.5,0.16491]
[1769034020545,0.28734808,3035.4,3034.5,0.16491]
[1769034020744,0.00360636,3035.6,3034.5,0.16491]
[1769034020942,4.52863533,3035.5,3034.5,0.16491]
[1769034021146,0.28735287,3035.4,3034.5,0.16491]
[1769034021346,0.28735287,3035.3,3034.5,0.16491]
[1769034021552,3.4022928,3035.5,3034.5,0.16491]
[1769034021754,0.28736508,3035.4,3034.5,0.16491]
[1769034021952,0.28736508,3035.3,3034.5,0.16491]
[1769034022153,4.52855262,3035.2,3033.9,3.87093488]
[1769034022353,1.12626553,3035.1,3034.1,0.16493]
[1769034022552,0.28733369,3035.0,3034.1,0.16493]
[1769034022753,3.4022928,3035.2,3034.1,0.16493]
[1769034023057,4.52862407,3035.1,3034.1,0.16493]
[1769034023354,1.12633127,3035.0,3034.1,0.16493]
[1769034023551,0.28739775,3034.9,3034.1,0.16493]
[1769034023749,0.28739775,3034.8,3034.1,0.16493]
[1769034023950,3.4022928,3035.1,3034.1,0.16493]
[1769034024154,1.12637047,3035.0,3034.1,0.16493]
[1769034024353,0.28740949,3034.9,3034.1,0.16493]
[1769034024656,0.28740949,3034.8,3034.1,0.16493]
[1769034024859,3.4022928,3035.1,3033.9,0.00293488]
[1769034025059,1.12654035,3035.0,3033.9,0.00293488]
[1769034025257,0.28744999,3034.9,3033.9,0.00293488]
[1769034025556,0.28744999,3034.8,3033.9,0.00293488]
[1769034025757,3.4022928,3035.1,3033.9,0.00293488]
[1769034025957,1.13210031,3035.0,3033.9,0.00293488]
[1769034026158,0.28741992,3034.9,3033.9,0.00293488]
[1769034026457,0.28740576,3034.8,3033.9,0.00293488]
[1769034026657,3.67327271,3035.1,3033.9,0.00293488]
[1769034026857,1.13205887,3035.0,3033.9,0.00293488]
[1769034027059,0.28740632,3034.9,3033.9,0.00293488]
[1769034027265,0.28735579,3034.8,3033.9,0.00293488]
[1769034027464,0.28735579,3034.7,3033.9,0.00293488]
[1769034027655,3.67327271,3035.1,3033.9,0.00293488]
[1769034027862,1.1319353,3035.0,3033.9,0.00293488]
[1769034028165,1.1319353,3034.9,3033.9,0.00293488]
[1769034028368,0.28737289,3034.8,3033.9,0.00293488]
[1769034028561,0.28737289,3034.7,3033.9,0.00293488]
[1769034028767,3.67327271,3035.1,3033.9,0.00293488]
[1769034028969,1.13185669,3035.0,3033.9,0.00293488]
[1769034029267,1.13185669,3034.9,3033.9,0.00293488]
[1769034029464,0.28734956,3034.8,3033.9,0.00293488]
[1769034029664,0.28734956,3034.7,3033.9,0.00293488]
[1769034029971,3.67327271,3035.1,3033.9,0.00293488]
[1769034030171,1.13177598,3035.0,3033.9,0.00293488]
[1769034030370,1.13177598,3034.9,3033.9,0.00293488]
[1769034030573,0.28732649,3034.8,3033.9,0.00293488]
[1769034030774,3.67327271,3035.1,3033.9,0.00293488]
[1769034030775,0.28732649,3034.7,3033.9,0.00293488]
[1769034031072,3.67327271,3035.1,3033.9,0.00293488]
[1769034031274,1.13200416,3035.0,3033.9,0.00293488]
[1769034031471,1.13200416,3034.9,3033.9,0.00293488]
[1769034031671,0.28737646,3034.8,3033.9,0.00293488]
[1769034031875,5.65207699,3034.7,3033.2,0.16498]
[1769034032073,3.59003896,3034.5,3032.6,4.98039768]
[1769034032374,3.59003896,3034.3,3032.7,0.165]
[1769034032578,3.59003896,3034.1,3032.8,0.165]
[1769034032767,3.59003896,3034.1,3032.8,0.1679048]
[1769034034876,4.52128427,3034.1,3032.8,0.1679048]